bitfinex-derivatives/quotes_SOLF0:USTF0_20250609
["timestamp","ask_amount","ask_price","bid_price","bid_amount"]
[1749449746924,9.94793445,150.01,150.0,44.2063586]
[1749449747629,5.51280258,150.01,150.0,44.2063586]
[1749449748226,0.05102708,150.01,150.0,44.2063586]
[1749449748832,5.51878031,150.01,150.0,44.2063586]
[1749449749624,9.95885195,150.01,150.0,44.2063586]
[1749449749830,9.95905615,150.01,150.0,44.2063586]
[1749449750221,5.521706,150.01,150.0,44.2063586]
[1749449750629,9.96198184,150.01,150.0,44.2063586]
[1749449751020,9.96189028,150.01,150.0,44.2063586]
[1749449751924,9.9629012,150.01,150.0,44.2063586]
[1749449752130,9.9630033,150.01,150.0,44.2063586]
[1749449752329,9.96300329,150.01,150.0,44.2063586]
[1749449752524,9.96300885,150.01,150.0,44.2063586]
[1749449752830,9.96282939,150.01,150.0,44.2063586]
[1749449753130,5.521706,150.01,150.0,44.2063586]
[1749449753630,0.05102708,150.01,150.0,44.2063586]
[1749449755827,4.5595,150.07,150.04,6.6615]
[1749449755828,6.19122636,150.07,150.04,6.6615]
[1749449756033,9.88749431,150.06,150.03,4.3829586]
[1749449756233,9.88749431,150.05,150.01,4.3829586]
[1749449756533,5.46729689,150.04,150.01,4.3829586]
[1749449756829,5.46729689,150.03,150.01,4.3829586]
[1749449757034,5.46729689,150.02,150.01,0.04550703]
[1749449757933,12.12979689,150.02,150.01,0.04550703]
[1749449758128,5.46729689,150.02,150.01,0.04550703]
[1749449762433,5.46729689,150.02,150.01,6.70840703]
[1749449764339,5.46729689,150.02,150.01,11.09136563]
[1749449764542,0.04532389,150.04,150.02,6.6625]
[1749449764738,5.45805185,150.03,150.02,6.6625]
[1749449770241,0.04532389,150.04,150.03,6.662]
[1749449770438,5.50780923,150.04,150.03,6.662]
[1749449770838,9.92878482,150.04,150.03,6.662]
[1749449771344,9.94311505,150.04,150.03,6.662]
[1749449771543,5.50780923,150.04,150.03,6.662]
[1749449772043,9.94307269,150.04,150.03,6.662]
[1749449772741,5.50780923,150.04,150.03,6.662]
[1749449772947,9.94470059,150.04,150.03,6.662]
[1749449773136,5.50780923,150.04,150.03,6.662]
[1749449773446,5.50780923,150.04,150.03,11.0449586]
[1749449774446,6.19122636,150.09,150.03,4.3829586]
[1749449774645,4.43619598,150.08,150.04,33.14]
[1749449774846,4.43619598,150.07,150.05,6.6609]
[1749449775047,4.43623073,150.06,150.05,6.6609]
[1749449775245,0.04274723,150.07,150.05,6.6609]
[1749449775445,0.04274723,150.07,150.04,39.84781519]
[1749449775639,4.43600371,150.06,150.04,39.84781519]
[1749449775841,4.43618758,150.05,150.04,39.84781519]
[1749449776044,4.43608441,150.05,150.04,39.84781519]
[1749449776349,4.44530142,150.05,150.04,39.84781519]
[1749449776540,0.04274723,150.07,150.05,6.661]
[1749449777143,4.44696533,150.06,150.05,6.661]
[1749449777350,0.04274723,150.07,150.06,6.6607]
[1749449777548,4.49120599,150.07,150.06,6.6607]
[1749449777748,4.49279564,150.07,150.06,6.6607]
[1749449778048,4.49279564,150.07,150.04,33.18641519]
[1749449778349,0.04274723,150.07,150.04,33.18641519]
[1749449778850,0.04274723,150.07,150.05,6.6612]
[1749449778851,4.45086821,150.06,150.05,6.6612]
[1749449779344,0.04274723,150.07,150.06,6.6607]
[1749449779945,4.49328287,150.07,150.06,6.6607]
[1749449780144,4.49346345,150.07,150.06,6.6607]
[1749449780345,4.49346396,150.07,150.06,6.6607]
[1749449781045,0.04274723,150.07,150.06,6.6607]
[1749449781447,4.5031906,150.07,150.06,6.6607]
[1749449781941,0.04274723,150.07,150.06,6.6607]
[1749449790367,0.04274723,150.07,150.05,6.6611]
[1749449791265,0.04274723,150.07,150.05,9.45052593]
[1749449793263,0.04274723,150.07,150.05,6.6611]
[1749449795765,0.04274723,150.07,150.04,39.84801519]
[1749449796167,0.04274723,150.07,150.04,33.18641519]
[1749449797069,6.70334723,150.07,150.04,33.18641519]
[1749449798763,6.70334723,150.07,150.05,6.6611]
[1749449798965,0.04274723,150.07,150.05,6.6611]
[1749449799967,0.04274723,150.07,150.06,6.6607]
[1749449801471,0.04274723,150.07,150.06,11.01944044]
[1749449803575,5.4392786,150.11,150.1,6.6589]
[1749449804474,0.05115354,150.12,150.09,33.1662481]
[1749449805373,0.05115354,150.12,150.1,6.6589]
[1749449805574,0.05115354,150.12,150.09,33.1662481]
[1749449805775,5.43979186,150.11,150.09,33.1662481]
[1749449805975,6.6586,150.11,150.09,33.1662481]
[1749449806174,0.05115354,150.12,150.09,33.1662481]
[1749449806379,5.44011008,150.11,150.09,33.1662481]
[1749449806675,6.70945354,150.12,150.09,33.1662481]
[1749449806876,5.43939434,150.11,150.09,33.1662481]
[1749449807077,6.70945354,150.12,150.09,33.1662481]
[1749449807275,5.44037461,150.11,150.09,39.8254481]
[1749449807474,6.70945354,150.12,150.09,39.8254481]
[1749449807772,5.44039031,150.11,150.09,39.8254481]
[1749449807989,6.70945354,150.12,150.09,39.8254481]
[1749449808178,5.44026762,150.11,150.09,39.8254481]
[1749449808374,6.70945354,150.12,150.09,39.8254481]
[1749449808580,5.44033303,150.11,150.1,6.6589]
[1749449809077,0.05115354,150.12,150.1,6.6589]
[1749449809481,0.05115354,150.12,150.11,6.6585]
[1749449809780,0.05115354,150.12,150.09,33.1662481]
[1749449809781,5.49226891,150.12,150.09,33.1662481]
[1749449810080,0.05115354,150.12,150.1,6.6587]
[1749449810377,5.45280561,150.11,150.1,6.6587]
[1749449810973,0.05115354,150.12,150.11,6.6585]
[1749449811182,5.5042396,150.12,150.11,6.6585]
[1749449815982,0.05115354,150.12,150.11,11.01724044]
[1749449816182,6.19122636,150.16,150.11,4.35874044]
[1749449816479,9.95070877,150.15,150.11,4.35874044]
[1749449816680,5.45257675,150.14,150.11,4.35874044]
[1749449816881,5.45257675,150.13,150.12,6.6581]
[1749449817182,9.95069916,150.13,150.12,6.6581]
[1749449817882,5.45257675,150.13,150.12,6.6581]
[1749449818383,9.95301708,150.13,150.12,6.6581]
[1749449818584,9.9526048,150.13,150.12,6.6581]
[1749449818884,5.45257675,150.13,150.12,6.6581]
[1749449819186,12.11017675,150.13,150.11,0.04711063]
[1749449819483,0.04662703,150.14,150.11,0.04711063]
[1749449819679,5.45400376,150.13,150.11,0.04711063]
[1749449819872,6.6576,150.13,150.11,0.04711063]
[1749449820985,6.6576,150.13,150.11,6.70551063]
[1749449821279,11.06276747,150.14,150.11,6.70551063]
[1749449821579,5.46104004,150.13,150.11,6.70551063]
[1749449821887,6.70402703,150.14,150.11,6.70551063]
[1749449822080,5.45951321,150.13,150.11,6.70551063]
[1749449822281,6.70402703,150.14,150.11,6.70551063]
[1749449822482,5.45889718,150.13,150.11,6.70551063]
[1749449822788,6.70402703,150.14,150.11,6.70551063]
[1749449822984,5.45914612,150.13,150.11,6.70551063]
[1749449823287,6.70402703,150.14,150.11,6.70551063]
[1749449823477,5.45899219,150.13,150.11,6.70551063]
[1749449823681,6.70402703,150.14,150.11,6.70551063]
[1749449823882,5.45948136,150.13,150.11,6.70551063]
[1749449824081,6.70402703,150.14,150.11,6.70551063]
[1749449824281,12.11417061,150.13,150.11,6.70551063]
[1749449824485,6.6577,150.13,150.11,6.70551063]
[1749449826588,5.45819658,150.12,150.11,6.70551063]
[1749449827096,6.70392703,150.14,150.11,6.70551063]
[1749449827387,5.4581563,150.13,150.11,6.70551063]
[1749449827588,6.70392703,150.14,150.12,6.658]
[1749449827787,5.45829481,150.13,150.12,6.658]
[1749449828287,0.04662703,150.14,150.13,6.6576]
[1749449828485,5.50530569,150.14,150.13,6.6576]
[1749449829296,5.50530569,150.14,150.13,39.7376]
[1749449829500,0.04662703,150.14,150.13,39.7376]
[1749449833293,6.19122636,150.19,150.15,6.6567]
[1749449833490,9.95255299,150.18,150.15,6.6567]
[1749449833690,9.95255299,150.17,150.15,6.6567]
[1749449833888,6.19122636,150.21,150.16,4.35874044]
[1749449834081,6.19122636,150.24,150.2,4.35874044]
[1749449834287,6.19122636,150.24,150.22,4.35874044]
[1749449834288,4.50151468,150.23,150.22,4.35874044]
[1749449834591,0.04897082,150.24,150.23,6.6532]
[1749449835099,4.55192251,150.24,150.22,11.01224044]
[1749449835289,0.04897082,150.24,150.22,4.35874044]
[1749449835886,0.04897082,150.24,150.21,33.08]
[1749449836289,4.50199952,150.23,150.21,33.08]
[1749449836491,6.6536,150.22,150.21,33.08]
[1749449836792,0.04897082,150.24,150.21,37.43874044]
[1749449836992,6.70207082,150.24,150.21,37.43874044]
[1749449837186,0.04897082,150.24,150.21,37.43874044]
[1749449837989,6.70187082,150.24,150.21,44.09284044]
[1749449839096,0.04897082,150.24,150.21,37.43874044]
[1749449839296,0.04897082,150.24,150.23,4.35874044]
[1749449840298,4.59389323,150.24,150.21,44.09254044]
[1749449840597,0.04897082,150.24,150.21,44.09254044]
[1749449840997,4.55777779,150.23,150.21,44.09254044]
[1749449841199,0.04897082,150.24,150.21,44.09254044]
[1749449841398,6.70167082,150.24,150.21,44.09254044]
[1749449841594,4.55787364,150.23,150.22,6.6536]
[1749449841902,0.04897082,150.24,150.22,4.35874044]
[1749449842400,11.1032,150.29,150.22,4.35874044]
[1749449842598,8.8555,150.29,150.26,4.35874044]
[1749449842794,2.2049,150.29,150.26,4.35874044]
[1749449843295,6.6511,150.28,150.26,4.35874044]
[1749449844400,0.04827218,150.29,150.26,4.35874044]
[1749449844995,0.04827218,150.29,150.28,4.35874044]
[1749449846795,0.04827218,150.29,150.25,33.10634917]
[1749449846796,0.04827218,150.29,150.26,6.6518]
[1749449846997,0.04827218,150.29,150.27,4.35874044]
[1749449848802,0.04827218,150.29,150.28,6.651]
[1749449849001,0.04827218,150.29,150.28,4.35874044]
[1749449850904,0.04827218,150.29,150.28,11.00974044]
[1749449854002,0.04827218,150.29,150.25,33.10634917]
[1749449854194,0.04827218,150.29,150.27,4.35874044]
[1749449855507,0.04827218,150.29,150.28,6.651]
[1749449858707,0.04827218,150.29,150.28,4.35874044]
[1749449859207,0.04827218,150.29,150.27,6.651]
[1749449859406,0.04827218,150.29,150.28,4.35874044]
[1749449859606,0.04827218,150.29,150.28,11.00974044]
[1749449859808,0.04827218,150.29,150.28,4.35874044]
[1749449861403,6.69877218,150.29,150.28,4.35874044]
[1749449862508,0.04827218,150.29,150.28,4.35874044]
[1749449862908,0.04827218,150.29,150.28,11.00974044]
[1749449871314,0.04827218,150.29,150.28,6.651]
[1749449871513,0.04827218,150.29,150.28,11.00974044]
[1749449872312,6.649,150.33,150.3,6.6498]
[1749449872513,6.649,150.33,150.3,44.10854044]
[1749449873316,6.649,150.33,150.31,6.6496]
[1749449873507,11.0409,150.34,150.31,6.6496]
[1749449873817,4.3924,150.34,150.31,6.6496]
[1749449874210,10.00444081,150.33,150.31,6.6496]
[1749449874515,4.53936255,150.32,150.31,6.6496]
[1749449874714,6.6488,150.33,150.31,6.6496]
[1749449875016,4.53589358,150.32,150.31,6.6496]
[1749449875205,6.6485,150.34,150.31,6.6496]
[1749449875407,10.00844375,150.33,150.31,6.6496]
[1749449875609,5.47166201,150.33,150.31,6.6496]
[1749449875806,35.4025,150.36,150.3,44.15780741]
[1749449876008,5.48754638,150.35,150.3,44.15780741]
[1749449876212,10.02418727,150.34,150.3,44.15780741]
[1749449876412,16.67318727,150.33,150.3,44.15780741]
[1749449876622,4.53664089,150.32,150.3,44.15780741]
[1749449876822,6.649,150.33,150.3,44.15780741]
[1749449877018,4.54057704,150.32,150.3,37.50790741]
[1749449877320,4.54057705,150.31,150.3,44.15780741]
[1749449877623,4.54042305,150.31,150.3,44.15780741]
[1749449877824,4.54051603,150.31,150.3,44.15780741]
[1749449878020,6.649,150.33,150.3,44.15780741]
[1749449878225,5.48735744,150.32,150.3,44.15780741]
[1749449878427,4.52353326,150.31,150.3,44.15780741]
[1749449878618,4.52353327,150.31,150.3,44.15780741]
[1749449878923,6.649,150.33,150.3,44.15780741]
[1749449879123,5.48725839,150.32,150.3,44.15780741]
[1749449879324,5.48725839,150.31,150.3,44.15780741]
[1749449879623,5.48725839,150.31,150.3,33.14916697]
[1749449879824,5.48725839,150.31,150.3,37.50790741]
[1749449880217,12.13695839,150.31,150.3,33.14916697]
[1749449880627,16.65846842,150.31,150.3,33.14916697]
[1749449880922,16.65790409,150.31,150.3,33.14916697]
[1749449881123,6.651,150.28,150.27,37.45874044]
[1749449881321,6.24079146,150.32,150.27,37.45874044]
[1749449881624,10.01093077,150.31,150.27,37.45874044]
[1749449881830,12.14077597,150.3,150.27,44.10994044]
[1749449882022,10.01096343,150.29,150.27,44.10994044]
[1749449882223,6.6503,150.3,150.27,44.10994044]
[1749449882422,5.49282273,150.29,150.27,44.10994044]
[1749449882624,6.6503,150.3,150.27,44.10994044]
[1749449882824,5.49312155,150.29,150.27,44.10994044]
[1749449883024,6.6503,150.3,150.27,44.10994044]
[1749449883224,5.49510962,150.29,150.27,44.10994044]
[1749449883423,5.49510962,150.28,150.27,44.10994044]
[1749449883832,5.49510962,150.28,150.27,37.45874044]
[1749449884223,5.49510962,150.28,150.27,33.1]
[1749449884627,12.14610962,150.28,150.27,33.1]
[1749449884826,11.68633598,150.28,150.23,33.1]
[1749449885122,16.20131079,150.27,150.21,37.45874044]
[1749449885326,5.49510962,150.26,150.21,37.45874044]
[1749449885526,5.49510962,150.25,150.23,4.35874044]
[1749449885729,12.84242636,150.28,150.25,6.652]
[1749449885935,0.05091919,150.26,150.25,6.652]
[1749449886137,5.55009311,150.26,150.25,6.652]
[1749449890435,5.55009311,150.26,150.24,6.6526]
[1749449890635,0.05091919,150.26,150.23,4.35874044]
[1749449891029,0.05091919,150.26,150.25,6.6523]
[1749449891233,5.5424805,150.26,150.25,6.6523]
[1749449891738,5.5424805,150.26,150.25,11.01104044]
[1749449892137,5.5424805,150.26,150.25,44.07104044]
[1749449892535,0.05091919,150.26,150.25,44.07104044]
[1749449895740,0.05091919,150.26,150.25,39.7123]
[1749449895940,0.05091919,150.26,150.25,44.07104044]
[1749449897341,0.05091919,150.26,150.25,39.7123]
[1749449899145,0.05091919,150.26,150.25,33.06]
[1749449899548,10.03883083,150.26,150.25,33.06]
[1749449899842,10.0378574,150.26,150.23,33.06]
[1749449900044,5.49092938,150.25,150.23,33.06]
[1749449900247,6.70301919,150.26,150.23,33.06]
[1749449900444,9.98623598,150.25,150.24,6.6528]
[1749449900645,9.98636625,150.25,150.24,6.6528]
[1749449900941,5.4898321,150.25,150.24,6.6528]
[1749449902151,0.05091919,150.26,150.25,6.6523]
[1749449908151,6.6502,150.3,150.27,6.651]
[1749449908450,10.81762636,150.33,150.29,4.35874044]
[1749449908654,4.4922763,150.32,150.29,11.00924044]
[1749449908850,4.49227625,150.31,150.29,11.00924044]
[1749449909046,4.492286,150.3,150.27,37.41874044]
[1749449909250,4.49372978,150.29,150.27,33.10964996]
[1749449909453,0.04851724,150.3,150.27,33.10964996]
[1749449910052,4.49410809,150.29,150.27,33.10964996]
[1749449910356,0.04851724,150.3,150.27,33.10964996]
[1749449910650,0.04851724,150.3,150.27,39.76104996]
[1749449910651,4.49412085,150.29,150.27,39.76104996]
[1749449910847,0.04851724,150.3,150.27,33.10964996]
[1749449911051,4.50302304,150.29,150.27,33.10964996]
[1749449911240,6.6509,150.29,150.27,33.10964996]
[1749449911445,4.50312285,150.28,150.27,33.10964996]
[1749449911751,6.6509,150.29,150.27,33.10964996]
[1749449911952,6.651,150.28,150.27,33.10964996]
[1749449912454,4.50116646,150.28,150.27,33.10964996]
[1749449912645,6.2397436,150.3,150.27,33.10964996]
[1749449912846,6.6508,150.29,150.27,33.10964996]
[1749449913247,4.50272568,150.28,150.27,33.10964996]
[1749449913448,4.50272569,150.28,150.27,33.10964996]
[1749449913652,4.50279048,150.28,150.27,33.10964996]
[1749449913854,11.15353227,150.28,150.27,33.10964996]
[1749449914054,16.60862387,150.28,150.27,33.10964996]
[1749449914354,12.10607251,150.28,150.27,33.10964996]
[1749449914554,16.60855027,150.28,150.27,33.10964996]
[1749449914756,16.60855026,150.28,150.27,33.10964996]
[1749449915256,9.95740318,150.28,150.27,33.10964996]
[1749449915452,9.95750105,150.28,150.27,33.10964996]
[1749449915949,5.45507251,150.28,150.27,33.10964996]
[1749449916255,9.95053292,150.28,150.27,33.10964996]
[1749449916454,9.95037897,150.28,150.27,33.10964996]
[1749449916754,5.45507251,150.28,150.27,39.76104996]
[1749449916956,9.95068117,150.28,150.27,39.76104996]
[1749449917152,9.95068117,150.28,150.27,33.10964996]
[1749449917356,9.95072241,150.28,150.27,33.10964996]
[1749449917755,5.45507251,150.28,150.27,33.10964996]
[1749449917952,9.95087134,150.28,150.27,33.10964996]
[1749449918154,5.45507251,150.28,150.27,33.10964996]
[1749449918448,9.95024192,150.28,150.27,33.10964996]
[1749449918655,5.45507251,150.28,150.27,33.10964996]
[1749449919050,5.45507251,150.28,150.27,39.76104996]
[1749449919356,9.9594806,150.28,150.27,39.76104996]
[1749449919554,9.95952333,150.28,150.27,39.76104996]
[1749449919757,9.95950963,150.28,150.27,33.10964996]
[1749449919953,9.95948922,150.28,150.27,33.10964996]
[1749449920147,5.45507251,150.28,150.27,33.10964996]
[1749449920348,9.9603098,150.28,150.27,33.10964996]
[1749449920854,9.9603098,150.28,150.27,39.76104996]
[1749449921348,5.45507251,150.28,150.27,39.76104996]
[1749449921956,9.95603618,150.28,150.27,44.1197904]
[1749449922554,9.9569488,150.28,150.27,44.1197904]
[1749449922754,5.45507251,150.28,150.27,44.1197904]
[1749449922947,9.95678412,150.28,150.27,44.1197904]
[1749449923157,5.45507251,150.28,150.27,44.1197904]
[1749449923359,9.95678294,150.28,150.27,44.1197904]
[1749449923560,9.95738548,150.28,150.27,44.1197904]
[1749449924155,9.9577471,150.28,150.27,44.1197904]
[1749449924549,5.45507251,150.28,150.27,44.1197904]
[1749449925660,9.95778969,150.28,150.27,44.1197904]
[1749449925958,5.45507251,150.28,150.27,44.1197904]
[1749449926157,9.95776544,150.28,150.27,37.4683904]
[1749449926358,9.95777941,150.28,150.27,33.10964996]
[1749449926758,16.60884164,150.28,150.27,33.10964996]
[1749449926960,12.10607251,150.28,150.27,33.10964996]
[1749449927261,16.6134322,150.28,150.27,33.10964996]
[1749449927456,12.10607251,150.28,150.27,33.10964996]
[1749449927658,16.61345506,150.28,150.27,33.10964996]
[1749449928060,16.61344545,150.28,150.27,33.10964996]
[1749449928361,16.61344545,150.28,150.27,0.04964996]
[1749449928566,16.61344787,150.28,150.27,0.04964996]
[1749449928754,12.10607251,150.28,150.27,0.04964996]
[1749449928959,6.6523,150.25,150.24,33.12]
[1749449929155,9.95900672,150.25,150.24,33.12]
[1749449929565,5.45507251,150.25,150.24,33.12]
[1749449930368,5.45507251,150.25,150.24,39.7728]
[1749449934563,9.94207879,150.25,150.24,39.7728]
[1749449934765,5.45507251,150.25,150.24,39.7728]
[1749449940569,0.04561057,150.26,150.25,6.6523]
[1749449940765,9.93249746,150.26,150.25,11.01104044]
[1749449940970,5.43834914,150.26,150.25,11.01104044]
[1749449941570,9.93581358,150.26,150.25,11.01104044]
[1749449941767,9.93581359,150.26,150.25,11.01104044]
[1749449942365,0.04561057,150.26,150.25,11.01104044]
[1749449944967,5.4388572,150.26,150.25,11.01104044]
[1749449945964,5.4388572,150.26,150.24,44.13124044]
[1749449946170,0.04561057,150.26,150.24,37.47874044]
[1749449947279,0.04561057,150.26,150.24,44.13134044]
[1749449947475,0.04561057,150.26,150.24,37.47874044]
[1749449948577,0.04561057,150.26,150.25,6.6523]
[1749449948775,5.44341509,150.26,150.25,6.6523]
[1749449949979,0.04561057,150.26,150.25,6.6523]
[1749449950373,5.44057878,150.26,150.25,6.6523]
[1749449951175,5.44046499,150.26,150.25,6.6523]
[1749449951379,0.04561057,150.26,150.25,6.6523]
[1749449952073,5.44058084,150.26,150.25,6.6523]
[1749449952276,0.04561057,150.26,150.25,6.6523]
[1749449959577,12.97594239,150.33,150.31,6.6495]
[1749449959772,10.15153572,150.32,150.31,6.6495]
[1749449959975,16.80093185,150.32,150.28,37.39874044]
[1749449960174,5.39481245,150.31,150.29,6.6503]
[1749449960379,10.15153185,150.3,150.29,6.6503]
[1749449960579,10.15089901,150.3,150.29,6.6503]
[1749449960781,5.39481245,150.3,150.29,6.6503]
[1749449960977,10.07979822,150.3,150.29,6.6503]
[1749449961173,5.39481245,150.3,150.29,6.6503]
[1749449961380,10.07979538,150.3,150.29,6.6503]
[1749449961580,10.07979104,150.3,150.29,6.6503]
[1749449962177,5.39481245,150.3,150.29,6.6503]
[1749449962377,10.07714915,150.3,150.29,6.6503]
[1749449962581,5.39481245,150.3,150.29,6.6503]
[1749449962781,10.07714505,150.3,150.29,6.6503]
[1749449963078,10.07713366,150.3,150.29,6.6503]
[1749449963277,10.07712796,150.3,150.29,6.6503]
[1749449963480,5.39481245,150.3,150.29,6.6503]
[1749449963684,0.04420715,150.31,150.3,6.6501]
[1749449963885,10.12101562,150.31,150.3,11.00884044]
[1749449964184,10.12035151,150.31,150.3,11.00884044]
[1749449964379,10.12035535,150.31,150.3,11.00884044]
[1749449964577,5.43871157,150.31,150.3,11.00884044]
[1749449964778,10.12035535,150.31,150.3,11.00884044]
[1749449964973,5.43871157,150.31,150.3,11.00884044]
[1749449965175,10.12034966,150.31,150.3,11.00884044]
[1749449965483,5.43871157,150.31,150.3,11.00884044]
[1749449965678,10.12035536,150.31,150.3,11.00884044]
[1749449965879,5.43871157,150.31,150.3,11.00884044]
[1749449966085,10.12034966,150.31,150.3,11.00884044]
[1749449966387,5.43871157,150.31,150.3,11.00884044]
[1749449966688,10.12156492,150.31,150.3,11.00884044]
[1749449966876,5.43871157,150.31,150.3,11.00884044]
[1749449967280,10.12156435,150.31,150.3,9.43013075]
[1749449967586,5.43871157,150.31,150.3,9.43013075]
[1749449967983,10.12065851,150.31,150.3,9.43013075]
[1749449968182,5.43871157,150.31,150.3,9.43013075]
[1749449968383,10.12065851,150.31,150.3,9.43013075]
[1749449968583,5.43871157,150.31,150.3,9.43013075]
[1749449969084,10.12267691,150.31,150.3,9.43013075]
[1749449970087,10.1226783,150.31,150.3,9.43013075]
[1749449970282,10.12267691,150.31,150.3,9.43013075]
[1749449970488,5.43871157,150.31,150.3,9.43013075]
[1749449971187,10.12133178,150.31,150.3,9.43013075]
[1749449971388,10.1213262,150.31,150.3,9.43013075]
[1749449972082,5.43871157,150.31,150.3,9.43013075]
[1749449972278,10.12133178,150.31,150.3,9.43013075]
[1749449972477,10.12805366,150.31,150.3,9.43013075]
[1749449972985,10.12805229,150.31,150.3,9.43013075]
[1749449973592,10.12805366,150.31,150.3,9.43013075]
[1749449973889,0.04420715,150.31,150.3,9.43013075]
[1749449983199,6.5604,150.36,150.3,2.78003075]
[1749449983408,10.09848531,150.35,150.34,9.42823075]
[1749449983700,10.09848012,150.35,150.34,9.42823075]
[1749449983896,10.09848009,150.35,150.34,9.42823075]
[1749449984108,10.0984801,150.35,150.34,9.42823075]
[1749449984303,10.09847636,150.35,150.34,9.42823075]
[1749449984512,5.39361003,150.35,150.34,9.42823075]
[1749449986811,5.39361003,150.35,150.33,42.49972972]
[1749449987108,6.6477,150.36,150.33,42.49972972]
[1749449987306,10.09364551,150.35,150.34,6.6483]
[1749449987703,10.09364551,150.35,150.33,35.85112972]
[1749449987904,10.09195512,150.34,150.33,33.07109897]
[1749449988304,10.09196033,150.34,150.33,33.07109897]
[1749449988506,5.39519908,150.34,150.33,39.71989897]
[1749449988913,10.09196284,150.34,150.33,39.71989897]
[1749449989102,10.09196284,150.34,150.33,33.07109897]
[1749449989508,6.22304239,150.41,150.33,35.85112972]
[1749449989717,6.6512,150.41,150.37,2.78003075]
[1749449989912,6.6459,150.4,150.37,2.82826462]
[1749449990308,6.6459,150.4,150.37,9.47506462]
[1749449990710,6.6512,150.41,150.4,6.6457]
[1749449991012,6.6512,150.41,150.39,2.78003075]
[1749449991812,6.6512,150.41,150.38,2.78003075]
[1749449992007,9.43123075,150.41,150.37,35.84826462]
[1749449992216,2.78003075,150.4,150.37,35.84826462]
[1749449992611,6.6512,150.41,150.39,2.78003075]
[1749449993212,6.6457,150.4,150.38,6.6464]
[1749449995109,6.6462,150.39,150.37,44.05495054]
[1749449995415,6.6512,150.41,150.37,39.71503387]
[1749449995616,6.6459,150.4,150.37,39.71503387]
[1749449996010,6.6512,150.41,150.37,33.06823387]
[1749449996218,6.6464,150.39,150.37,33.06823387]
[1749449996417,6.6512,150.41,150.37,33.06823387]
[1749449996715,6.6512,150.41,150.37,39.71493387]
[1749449996916,6.6459,150.4,150.37,39.71493387]
[1749449997116,6.6512,150.41,150.37,33.06823387]
[1749449997818,6.6465,150.39,150.37,33.06823387]
[1749449998422,6.6466,150.38,150.37,33.06823387]
[1749449999625,6.6466,150.38,150.37,0.04823387]
[1749450001419,12.01890754,150.38,150.37,0.04823387]
[1749450001617,16.62018121,150.38,150.37,0.04823387]
[1749450002125,16.61980457,150.38,150.37,0.04823387]
[1749450002425,12.01890754,150.38,150.37,0.04823387]
[1749450002614,16.61980457,150.38,150.37,0.04823387]
[1749450002816,12.01890754,150.38,150.37,0.04823387]
[1749450003019,6.6479,150.35,150.34,33.02]
[1749450003224,16.62110461,150.35,150.34,33.02]
[1749450003425,9.97320461,150.35,150.34,33.02]
[1749450003621,9.98102802,150.35,150.34,33.02]
[1749450003821,5.37230754,150.35,150.34,39.6683]
[1749450004226,5.37230754,150.35,150.34,33.02]
[1749450004726,9.98102207,150.35,150.34,33.02]
[1749450005328,9.97297399,150.35,150.34,39.6683]
[1749450005526,5.37230754,150.35,150.34,33.02]
[1749450005730,16.62087568,150.35,150.34,33.02]
[1749450006231,12.02020754,150.35,150.34,33.02]
[1749450006425,9.96386452,150.35,150.34,33.02]
[1749450007226,5.37230754,150.35,150.34,33.02]
[1749450007427,16.60480407,150.35,150.33,0.0465536]
[1749450007621,5.37230754,150.34,150.33,0.0465536]
[1749450007823,9.95691478,150.34,150.33,0.0465536]
[1749450008030,9.9569203,150.34,150.33,0.0465536]
[1749450008432,16.6052203,150.34,150.33,0.0465536]
[1749450009029,12.02060754,150.34,150.33,0.0465536]
[1749450009230,16.6052235,150.34,150.33,0.0465536]
[1749450010924,12.02060754,150.34,150.33,0.0465536]
[1749450011324,16.59565675,150.34,150.33,0.0465536]
[1749450011523,16.59703827,150.34,150.33,0.0465536]
[1749450012334,16.59464097,150.34,150.33,0.0465536]
[1749450012634,16.59462989,150.34,150.33,0.0465536]
[1749450012835,16.59463358,150.34,150.33,0.0465536]
[1749450013036,12.02060754,150.34,150.33,0.0465536]
[1749450013233,5.37230754,150.34,150.33,0.0465536]
[1749450013530,9.94632298,150.34,150.33,0.0465536]
[1749450014037,9.94631883,150.34,150.33,0.0465536]
[1749450014239,16.59222933,150.34,150.33,0.0465536]
[1749450014529,12.02060754,150.34,150.33,0.0465536]
[1749450014729,16.5922442,150.34,150.33,0.0465536]
[1749450014927,16.59224035,150.34,150.33,0.0465536]
[1749450015536,16.59224779,150.34,150.33,0.0465536]
[1749450015738,16.59224039,150.34,150.33,0.0465536]
[1749450016241,12.02060754,150.34,150.33,0.0465536]
[1749450016439,16.59224039,150.34,150.33,0.0465536]
[1749450016738,12.02060754,150.34,150.33,0.0465536]
[1749450016940,16.59223963,150.34,150.33,0.0465536]